[Event "Titled Tuesday Blitz March 07 Late 2023"]
[White "Marczuk, Dominik"]
[Black "Crispin Ferreras, Darvi Abraham"]
[WhiteFideId "1111264"]
[BlackFideId "6402771"]
[WhiteElo "2174"]
[BlackElo "2106"]
[Result "1-0"]
[Round "09"]
[TimeControl "180+2"]
[Date "2023.03.07"]
[WhiteClock "0:00:46"]
[BlackClock "0:01:49"]

1. e4 {[%clk 0:02:42]}  c5 {[%clk 0:02:58]} 2. Nf3 {[%clk 0:02:41]}  e6 {[%clk 0:02:58]} 3. d4 {[%clk 0:02:42]}  cxd4 {[%clk 0:02:59]} 4. Nxd4 {[%clk 0:02:43]}  a6 {[%clk 0:02:59]} 5. Bd3 {[%clk 0:02:38]}  Bc5 {[%clk 0:02:59]} 6. Nb3 {[%clk 0:02:38]}  Ba7 {[%clk 0:03:00]} 7. O-O {[%clk 0:02:39]}  d6 {[%clk 0:02:59]} 8. Qe2 {[%clk 0:02:39]}  Qc7 {[%clk 0:02:58]} 9. Nc3 {[%clk 0:02:40]}  Nf6 {[%clk 0:02:58]} 10. Bd2 {[%clk 0:02:40]}  Nbd7 {[%clk 0:02:58]} 11. Kh1 {[%clk 0:02:41]}  O-O {[%clk 0:02:58]} 12. Rae1 {[%clk 0:02:41]}  Ne5 {[%clk 0:02:56]} 13. f4 {[%clk 0:02:41]}  Nxd3 {[%clk 0:02:56]} 14. cxd3 {[%clk 0:02:41]}  e5 {[%clk 0:02:55]} 15. Rc1 {[%clk 0:02:42]}  Qe7 {[%clk 0:02:52]} 16. fxe5 {[%clk 0:02:41]}  dxe5 {[%clk 0:02:52]} 17. Bg5 {[%clk 0:02:41]}  Be6 {[%clk 0:02:41]} 18. Nd2 {[%clk 0:01:29]}  Kh8 {[%clk 0:02:38]} 19. Nf3 {[%clk 0:01:26]}  Bg4 {[%clk 0:02:37]} 20. h3 {[%clk 0:01:23]}  Bh5 {[%clk 0:02:36]} 21. g4 {[%clk 0:01:21]}  Bg6 {[%clk 0:02:36]} 22. Nd5 {[%clk 0:01:21]}  Qe6 {[%clk 0:02:35]} 23. Nc7 {[%clk 0:01:18]}  Qd6 {[%clk 0:02:33]} 24. Nxa8 {[%clk 0:01:18]}  Rxa8 {[%clk 0:02:32]} 25. Bxf6 {[%clk 0:01:15]}  gxf6 {[%clk 0:02:33]} 26. Rc3 {[%clk 0:01:11]}  Rd8 {[%clk 0:02:31]} 27. Rfc1 {[%clk 0:01:11]}  Kg7 {[%clk 0:02:30]} 28. Kg2 {[%clk 0:01:08]}  h5 {[%clk 0:02:30]} 29. Rc7 {[%clk 0:01:03]}  hxg4 {[%clk 0:02:28]} 30. hxg4 {[%clk 0:01:03]}  Rd7 {[%clk 0:02:28]} 31. Rxd7 {[%clk 0:01:03]}  Qxd7 {[%clk 0:02:29]} 32. Nh4 {[%clk 0:00:56]}  Bd4 {[%clk 0:02:21]} 33. Nf5+ {[%clk 0:00:56]}  Bxf5 {[%clk 0:02:21]} 34. gxf5 {[%clk 0:00:56]}  Kf8 {[%clk 0:02:16]} 35. Qc2 {[%clk 0:00:54]}  Qb5 {[%clk 0:02:10]} 36. b3 {[%clk 0:00:52]}  Qb4 {[%clk 0:02:06]} 37. a4 {[%clk 0:00:49]}  b5 {[%clk 0:02:04]} 38. axb5 {[%clk 0:00:49]}  axb5 {[%clk 0:02:04]} 39. Kf3 {[%clk 0:00:50]}  Qa3 {[%clk 0:01:59]} 40. Qc8+ {[%clk 0:00:47]}  Kg7 {[%clk 0:01:58]} 41. Rh1 {[%clk 0:00:46]}  Qxb3 {[%clk 0:01:49]} 42. Qh8# {[%clk 0:00:46]} 1-0


[Site "https://www.chess.com"]

[Event "Titled Tuesday Blitz March 07 Late 2023"]
[White "Gatterer, Florian"]
[Black "Prieto Aranguren, Alain"]
[WhiteFideId "811688"]
[BlackFideId "2268906"]
[WhiteElo "2221"]
[BlackElo "2209"]
[Result "1-0"]
[Round "09"]
[TimeControl "180+2"]
[Date "2023.03.07"]
[WhiteClock "0:00:04"]
[BlackClock "0:00:06"]

1. b3 {[%clk 0:02:59]}  a5 {[%clk 0:02:57]} 2. Nc3 {[%clk 0:02:52]}  Na6 {[%clk 0:02:51]} 3. Bb2 {[%clk 0:02:47]}  Nc5 {[%clk 0:02:50]} 4. d4 {[%clk 0:02:47]}  Na6 {[%clk 0:02:49]} 5. e4 {[%clk 0:02:47]}  c6 {[%clk 0:02:48]} 6. a4 {[%clk 0:02:46]}  d5 {[%clk 0:02:47]} 7. e5 {[%clk 0:02:41]}  Bf5 {[%clk 0:02:46]} 8. Bd3 {[%clk 0:02:41]}  Bxd3 {[%clk 0:02:45]} 9. Qxd3 {[%clk 0:02:41]}  Nb4 {[%clk 0:02:46]} 10. Qd1 {[%clk 0:02:40]}  e6 {[%clk 0:02:46]} 11. Nge2 {[%clk 0:02:36]}  Qg5 {[%clk 0:02:43]} 12. O-O {[%clk 0:02:34]}  h5 {[%clk 0:02:43]} 13. Ba3 {[%clk 0:02:34]}  Nh6 {[%clk 0:02:42]} 14. f3 {[%clk 0:02:25]}  h4 {[%clk 0:02:36]} 15. f4 {[%clk 0:02:24]}  Qg6 {[%clk 0:02:35]} 16. Bxb4 {[%clk 0:02:22]}  axb4 {[%clk 0:02:33]} 17. Nb1 {[%clk 0:02:14]}  Nf5 {[%clk 0:02:32]} 18. Qd3 {[%clk 0:02:13]}  Ra5 {[%clk 0:02:20]} 19. Nd2 {[%clk 0:02:11]}  c5 {[%clk 0:02:16]} 20. Kh1 {[%clk 0:01:59]}  cxd4 {[%clk 0:02:05]} 21. Nf3 {[%clk 0:01:43]}  Ng3+ {[%clk 0:01:25]} 22. Nxg3 {[%clk 0:01:34]}  Qxd3 {[%clk 0:01:25]} 23. cxd3 {[%clk 0:01:33]}  hxg3 {[%clk 0:01:25]} 24. Rac1 {[%clk 0:01:06]}  Rc5 {[%clk 0:01:21]} 25. Rxc5 {[%clk 0:01:00]}  Bxc5 {[%clk 0:01:20]} 26. Rc1 {[%clk 0:01:00]}  b6 {[%clk 0:01:15]} 27. a5 {[%clk 0:00:59]}  Kd7 {[%clk 0:01:14]} 28. a6 {[%clk 0:00:56]}  gxh2 {[%clk 0:01:10]} 29. Ra1 {[%clk 0:00:47]}  Ra8 {[%clk 0:01:08]} 30. Kxh2 {[%clk 0:00:45]}  Kc6 {[%clk 0:01:07]} 31. Kh3 {[%clk 0:00:35]}  f6 {[%clk 0:01:00]} 32. Kg4 {[%clk 0:00:32]}  Kb5 {[%clk 0:00:58]} 33. Kh5 {[%clk 0:00:27]}  Rxa6 {[%clk 0:00:52]} 34. Rxa6 {[%clk 0:00:26]}  Kxa6 {[%clk 0:00:52]} 35. Kg6 {[%clk 0:00:26]}  Kb7 {[%clk 0:00:47]} 36. Kf7 {[%clk 0:00:26]}  Kc6 {[%clk 0:00:37]} 37. Kxe6 {[%clk 0:00:26]}  fxe5 {[%clk 0:00:34]} 38. Nxe5+ {[%clk 0:00:20]}  Kc7 {[%clk 0:00:34]} 39. Nf7 {[%clk 0:00:17]}  Kc8 {[%clk 0:00:21]} 40. g4 {[%clk 0:00:17]}  Bf8 {[%clk 0:00:18]} 41. f5 {[%clk 0:00:16]}  Kc7 {[%clk 0:00:17]} 42. Ne5 {[%clk 0:00:13]}  Bc5 {[%clk 0:00:13]} 43. g5 {[%clk 0:00:13]}  Kd8 {[%clk 0:00:13]} 44. f6 {[%clk 0:00:09]}  gxf6 {[%clk 0:00:12]} 45. gxf6 {[%clk 0:00:09]}  Ke8 {[%clk 0:00:10]} 46. f7+ {[%clk 0:00:10]}  Kf8 {[%clk 0:00:10]} 47. Kxd5 {[%clk 0:00:07]}  Ke7 {[%clk 0:00:09]} 48. Kc6 {[%clk 0:00:04]}  Ke6 {[%clk 0:00:08]} 49. Nd7 {[%clk 0:00:03]}  Be7 {[%clk 0:00:06]} 50. f8=Q {[%clk 0:00:04]}  Bxf8 {[%clk 0:00:06]} 51. Nxf8+ {[%clk 0:00:04]}  Kf5 {[%clk 0:00:06]} 52. Kd5 {[%clk 0:00:04]}  Kf4 {[%clk 0:00:06]} 53. Kxd4 {[%clk 0:00:04]}  Kf3 {[%clk 0:00:06]} 54. Kc4 {[%clk 0:00:05]}  Ke2 {[%clk 0:00:06]} 55. d4 {[%clk 0:00:04]} 1-0


[Site "https://www.chess.com"]

[Event "Titled Tuesday Blitz March 07 Late 2023"]
[White "Kielinkei"]
[Black "Leonte, Sebastian-Marian"]
[BlackFideId "1268767"]
[WhiteElo "2390"]
[BlackElo "2286"]
[Result "0-1"]
[Round "09"]
[TimeControl "180+2"]
[Date "2023.03.07"]
[WhiteClock "0:00:02"]
[BlackClock "0:00:16"]

1. Nf3 {[%clk 0:02:57]}  Nf6 {[%clk 0:02:59]} 2. g3 {[%clk 0:02:56]}  d5 {[%clk 0:02:57]} 3. Bg2 {[%clk 0:02:54]}  c6 {[%clk 0:02:58]} 4. O-O {[%clk 0:02:52]}  Bg4 {[%clk 0:02:58]} 5. d4 {[%clk 0:02:51]}  e6 {[%clk 0:02:52]} 6. h3 {[%clk 0:02:51]}  Bh5 {[%clk 0:02:52]} 7. c4 {[%clk 0:02:52]}  Be7 {[%clk 0:02:47]} 8. Nc3 {[%clk 0:02:50]}  Nbd7 {[%clk 0:02:44]} 9. cxd5 {[%clk 0:02:49]}  cxd5 {[%clk 0:02:40]} 10. Bf4 {[%clk 0:02:45]}  a6 {[%clk 0:02:39]} 11. Rc1 {[%clk 0:02:44]}  O-O {[%clk 0:02:38]} 12. Qb3 {[%clk 0:02:40]}  b5 {[%clk 0:02:36]} 13. a3 {[%clk 0:02:34]}  Nb6 {[%clk 0:02:32]} 14. Ne5 {[%clk 0:02:30]}  Rc8 {[%clk 0:02:29]} 15. g4 {[%clk 0:02:07]}  Bg6 {[%clk 0:02:28]} 16. e3 {[%clk 0:02:00]}  Nc4 {[%clk 0:02:17]} 17. Rfd1 {[%clk 0:01:43]}  Na5 {[%clk 0:02:01]} 18. Qa2 {[%clk 0:01:41]}  Nd7 {[%clk 0:01:44]} 19. Nxd7 {[%clk 0:01:32]}  Qxd7 {[%clk 0:01:43]} 20. Ne2 {[%clk 0:01:30]}  Bc2 {[%clk 0:01:37]} 21. Rd2 {[%clk 0:01:16]}  Bb3 {[%clk 0:01:32]} 22. Qa1 {[%clk 0:01:04]}  Bc4 {[%clk 0:01:31]} 23. Rc3 {[%clk 0:00:37]}  Nb3 {[%clk 0:01:26]} 24. Rxb3 {[%clk 0:00:35]}  Bxb3 {[%clk 0:01:25]} 25. Nc3 {[%clk 0:00:35]}  a5 {[%clk 0:01:16]} 26. Bf1 {[%clk 0:00:34]}  Bc4 {[%clk 0:01:13]} 27. Bg3 {[%clk 0:00:24]}  b4 {[%clk 0:00:54]} 28. Ne2 {[%clk 0:00:22]}  bxa3 {[%clk 0:00:50]} 29. bxa3 {[%clk 0:00:23]}  Qa4 {[%clk 0:00:45]} 30. Nc3 {[%clk 0:00:16]}  Qxa3 {[%clk 0:00:44]} 31. Qxa3 {[%clk 0:00:15]}  Bxa3 {[%clk 0:00:45]} 32. Na4 {[%clk 0:00:11]}  Bb4 {[%clk 0:00:43]} 33. Rb2 {[%clk 0:00:09]}  Bxf1 {[%clk 0:00:38]} 34. Kxf1 {[%clk 0:00:10]}  Rc1+ {[%clk 0:00:37]} 35. Ke2 {[%clk 0:00:10]}  Rfc8 {[%clk 0:00:36]} 36. Kd3 {[%clk 0:00:09]}  Rd1+ {[%clk 0:00:32]} 37. Ke2 {[%clk 0:00:09]}  Rcc1 {[%clk 0:00:29]} 38. Nb6 {[%clk 0:00:07]}  h6 {[%clk 0:00:22]} 39. h4 {[%clk 0:00:05]}  Ra1 {[%clk 0:00:20]} 40. g5 {[%clk 0:00:04]}  hxg5 {[%clk 0:00:18]} 41. hxg5 {[%clk 0:00:05]}  Rdb1 {[%clk 0:00:19]} 42. Rc2 {[%clk 0:00:05]}  Rc1 {[%clk 0:00:19]} 43. Rb2 {[%clk 0:00:04]}  Re1+ {[%clk 0:00:19]} 44. Kf3 {[%clk 0:00:03]}  Rec1 {[%clk 0:00:19]} 45. Be5 {[%clk 0:00:02]}  Be7 {[%clk 0:00:16]} 0-1


[Site "https://www.chess.com"]

[Event "Titled Tuesday Blitz March 07 Late 2023"]
[White "Davidson, Kevin"]
[Black "Smith, Garrett L"]
[WhiteFideId "2056810"]
[BlackFideId "2024829"]
[WhiteElo "2151"]
[BlackElo "2264"]
[Result "1-0"]
[Round "09"]
[TimeControl "180+2"]
[Date "2023.03.07"]
[WhiteClock "0:00:16"]
[BlackClock "0:00:10"]

1. e4 {[%clk 0:03:00]}  c5 {[%clk 0:02:59]} 2. Nf3 {[%clk 0:03:00]}  Nc6 {[%clk 0:02:59]} 3. d4 {[%clk 0:03:01]}  cxd4 {[%clk 0:03:00]} 4. Nxd4 {[%clk 0:03:01]}  e5 {[%clk 0:03:01]} 5. Nb5 {[%clk 0:03:00]}  d6 {[%clk 0:03:01]} 6. Bc4 {[%clk 0:03:00]}  Be7 {[%clk 0:02:57]} 7. O-O {[%clk 0:02:58]}  Nf6 {[%clk 0:02:51]} 8. Bg5 {[%clk 0:02:52]}  Nxe4 {[%clk 0:02:32]} 9. Bxe7 {[%clk 0:02:47]}  Kxe7 {[%clk 0:02:02]} 10. Bxf7 {[%clk 0:01:40]}  Nf6 {[%clk 0:01:44]} 11. Bb3 {[%clk 0:01:34]}  d5 {[%clk 0:01:41]} 12. f4 {[%clk 0:01:16]}  Qb6+ {[%clk 0:01:38]} 13. Kh1 {[%clk 0:01:16]}  Qxb5 {[%clk 0:01:25]} 14. fxe5 {[%clk 0:01:16]}  Nxe5 {[%clk 0:01:25]} 15. Re1 {[%clk 0:01:10]}  Ng4 {[%clk 0:00:51]} 16. Qd4 {[%clk 0:01:06]}  Be6 {[%clk 0:00:45]} 17. h3 {[%clk 0:00:51]}  h5 {[%clk 0:00:20]} 18. Nc3 {[%clk 0:00:47]}  Qb6 {[%clk 0:00:17]} 19. Qxb6 {[%clk 0:00:35]}  axb6 {[%clk 0:00:17]} 20. hxg4 {[%clk 0:00:33]}  hxg4+ {[%clk 0:00:17]} 21. Kg1 {[%clk 0:00:33]}  Kd6 {[%clk 0:00:17]} 22. Rad1 {[%clk 0:00:20]}  g3 {[%clk 0:00:12]} 23. Ne4+ {[%clk 0:00:18]}  Ke7 {[%clk 0:00:11]} 24. Nxg3 {[%clk 0:00:18]}  Ng4 {[%clk 0:00:10]} 25. Bxd5 {[%clk 0:00:16]}  Rh6 {[%clk 0:00:11]} 26. Nf5+ {[%clk 0:00:16]}  Kf6 {[%clk 0:00:10]} 27. Nxh6 {[%clk 0:00:16]}  Bxd5 {[%clk 0:00:10]} 28. Nxg4+ {[%clk 0:00:16]} 1-0


[Site "https://www.chess.com"]

[Event "Titled Tuesday Blitz March 07 Late 2023"]
[White "Rios Escobar, Adan"]
[Black "olga-belka"]
[WhiteFideId "3403645"]
[WhiteElo "2371"]
[BlackElo "2243"]
[Result "1-0"]
[Round "09"]
[TimeControl "180+2"]
[Date "2023.03.07"]
[WhiteClock "0:00:28"]
[BlackClock "0:00:42"]

1. d4 {[%clk 0:02:51]}  Nf6 {[%clk 0:02:58]} 2. g3 {[%clk 0:02:47]}  g6 {[%clk 0:02:58]} 3. Bg2 {[%clk 0:02:47]}  d5 {[%clk 0:02:57]} 4. c4 {[%clk 0:02:46]}  c6 {[%clk 0:02:57]} 5. Nf3 {[%clk 0:02:44]}  Bg7 {[%clk 0:02:56]} 6. Qb3 {[%clk 0:02:45]}  O-O {[%clk 0:02:54]} 7. Nc3 {[%clk 0:02:45]}  dxc4 {[%clk 0:02:52]} 8. Qxc4 {[%clk 0:02:46]}  Nbd7 {[%clk 0:02:51]} 9. O-O {[%clk 0:02:45]}  Nb6 {[%clk 0:02:50]} 10. Qd3 {[%clk 0:02:45]}  Be6 {[%clk 0:02:41]} 11. b3 {[%clk 0:02:45]}  a5 {[%clk 0:02:40]} 12. a4 {[%clk 0:02:45]}  Bxb3 {[%clk 0:02:39]} 13. e4 {[%clk 0:02:41]}  Bc4 {[%clk 0:02:38]} 14. Qe3 {[%clk 0:02:38]}  Bxf1 {[%clk 0:02:38]} 15. Bxf1 {[%clk 0:02:39]}  Qc7 {[%clk 0:02:19]} 16. Ba3 {[%clk 0:02:38]}  Rfd8 {[%clk 0:02:17]} 17. Ne5 {[%clk 0:02:39]}  e6 {[%clk 0:02:12]} 18. Rc1 {[%clk 0:02:34]}  Nfd7 {[%clk 0:02:06]} 19. Nb5 {[%clk 0:02:33]}  Qb8 {[%clk 0:02:02]} 20. Bd6 {[%clk 0:02:22]}  Qc8 {[%clk 0:02:02]} 21. Qf4 {[%clk 0:02:08]}  Nxe5 {[%clk 0:01:58]} 22. dxe5 {[%clk 0:02:09]}  Nxa4 {[%clk 0:01:52]} 23. Be7 {[%clk 0:01:56]}  Qd7 {[%clk 0:01:41]} 24. Bxd8 {[%clk 0:01:51]}  cxb5 {[%clk 0:01:33]} 25. Bf6 {[%clk 0:01:51]}  b4 {[%clk 0:01:29]} 26. Qf3 {[%clk 0:01:36]}  Nc3 {[%clk 0:01:27]} 27. h4 {[%clk 0:01:18]}  a4 {[%clk 0:01:23]} 28. h5 {[%clk 0:01:18]}  Bxf6 {[%clk 0:01:17]} 29. Qxf6 {[%clk 0:01:12]}  Qd8 {[%clk 0:01:16]} 30. Qf4 {[%clk 0:00:58]}  a3 {[%clk 0:01:12]} 31. Bc4 {[%clk 0:00:58]}  a2 {[%clk 0:01:08]} 32. Kg2 {[%clk 0:00:58]}  a1=Q {[%clk 0:01:04]} 33. Rxa1 {[%clk 0:00:46]}  Rxa1 {[%clk 0:01:03]} 34. h6 {[%clk 0:00:47]}  Qd1 {[%clk 0:00:58]} 35. Qh4 {[%clk 0:00:30]}  Qh5 {[%clk 0:00:42]} 36. Qd8# {[%clk 0:00:28]} 1-0


[Site "https://www.chess.com"]

[Event "Titled Tuesday Blitz March 07 Late 2023"]
[White "Rodriguez Santiago, Jaime"]
[Black "Seletsky, Grigory"]
[WhiteFideId "3100898"]
[BlackFideId "14112191"]
[WhiteElo "2025"]
[BlackElo "2490"]
[Result "0-1"]
[Round "09"]
[TimeControl "180+2"]
[Date "2023.03.07"]
[WhiteClock "0:00:34"]
[BlackClock "0:01:44"]

1. c4 {[%clk 0:03:00]}  c6 {[%clk 0:02:59]} 2. d4 {[%clk 0:03:00]}  d5 {[%clk 0:03:00]} 3. cxd5 {[%clk 0:03:00]}  cxd5 {[%clk 0:03:00]} 4. Bf4 {[%clk 0:03:01]}  Nc6 {[%clk 0:03:01]} 5. e3 {[%clk 0:03:02]}  e6 {[%clk 0:03:01]} 6. Nc3 {[%clk 0:03:00]}  Nf6 {[%clk 0:03:02]} 7. Bd3 {[%clk 0:02:55]}  Bd6 {[%clk 0:03:02]} 8. Bxd6 {[%clk 0:02:55]}  Qxd6 {[%clk 0:03:03]} 9. f4 {[%clk 0:02:55]}  O-O {[%clk 0:03:02]} 10. Nf3 {[%clk 0:02:55]}  a6 {[%clk 0:03:03]} 11. O-O {[%clk 0:02:55]}  b5 {[%clk 0:03:03]} 12. Ne5 {[%clk 0:02:49]}  Bb7 {[%clk 0:03:04]} 13. Rf3 {[%clk 0:02:44]}  g6 {[%clk 0:03:00]} 14. g4 {[%clk 0:02:31]}  Rac8 {[%clk 0:02:54]} 15. g5 {[%clk 0:02:29]}  Ne8 {[%clk 0:02:50]} 16. Ng4 {[%clk 0:02:12]}  f5 {[%clk 0:02:44]} 17. gxf6 {[%clk 0:02:07]}  Nxf6 {[%clk 0:02:44]} 18. Ne5 {[%clk 0:01:58]}  Rc7 {[%clk 0:02:42]} 19. Rg3 {[%clk 0:01:55]}  Rg7 {[%clk 0:02:41]} 20. Kh1 {[%clk 0:01:43]}  Nd7 {[%clk 0:02:25]} 21. Qd2 {[%clk 0:01:30]}  Ndxe5 {[%clk 0:02:18]} 22. fxe5 {[%clk 0:01:28]}  Qd8 {[%clk 0:02:18]} 23. Rag1 {[%clk 0:01:26]}  Ne7 {[%clk 0:02:11]} 24. Ne2 {[%clk 0:01:23]}  Nf5 {[%clk 0:02:05]} 25. Rg5 {[%clk 0:01:19]}  Nh4 {[%clk 0:02:02]} 26. R5g3 {[%clk 0:00:53]}  Nf3 {[%clk 0:02:00]} 27. Rxf3 {[%clk 0:00:53]}  Rxf3 {[%clk 0:02:00]} 28. Nf4 {[%clk 0:00:54]}  Qh4 {[%clk 0:01:56]} 29. Qe2 {[%clk 0:00:50]}  Rf2 {[%clk 0:01:54]} 30. Ng2 {[%clk 0:00:43]}  Rxe2 {[%clk 0:01:51]} 31. Nxh4 {[%clk 0:00:43]}  Rxe3 {[%clk 0:01:50]} 32. Bf1 {[%clk 0:00:38]}  g5 {[%clk 0:01:47]} 33. Ng2 {[%clk 0:00:37]}  Re4 {[%clk 0:01:47]} 34. Ne1 {[%clk 0:00:32]}  Rxe1 {[%clk 0:01:45]} 35. Bh3 {[%clk 0:00:33]}  Rxg1+ {[%clk 0:01:44]} 36. Kxg1 {[%clk 0:00:34]}  g4 {[%clk 0:01:44]} 0-1


[Site "https://www.chess.com"]

[Event "Titled Tuesday Blitz March 07 Late 2023"]
[White "Needleman, Alejandro"]
[Black "Marcolino, Daniel Mattos"]
[WhiteFideId "100730"]
[BlackFideId "2106841"]
[WhiteElo "2230"]
[BlackElo "2124"]
[Result "1-0"]
[Round "09"]
[TimeControl "180+2"]
[Date "2023.03.07"]
[WhiteClock "0:02:24"]
[BlackClock "0:01:19"]

1. e4 {[%clk 0:03:00]}  c6 {[%clk 0:02:59]} 2. d4 {[%clk 0:02:58]}  d5 {[%clk 0:02:59]} 3. Nc3 {[%clk 0:02:59]}  dxe4 {[%clk 0:02:59]} 4. Nxe4 {[%clk 0:03:00]}  Nd7 {[%clk 0:02:59]} 5. Bc4 {[%clk 0:02:59]}  Ngf6 {[%clk 0:02:59]} 6. Nxf6+ {[%clk 0:03:00]}  Nxf6 {[%clk 0:02:58]} 7. c3 {[%clk 0:03:01]}  Bf5 {[%clk 0:02:57]} 8. Qb3 {[%clk 0:03:01]}  e6 {[%clk 0:02:55]} 9. Qxb7 {[%clk 0:03:00]}  Qc8 {[%clk 0:02:48]} 10. Ba6 {[%clk 0:02:56]}  e5 {[%clk 0:02:15]} 11. dxe5 {[%clk 0:02:48]}  Ng4 {[%clk 0:02:15]} 12. Qxc8+ {[%clk 0:02:43]}  Bxc8 {[%clk 0:02:14]} 13. Bxc8 {[%clk 0:02:43]}  Rxc8 {[%clk 0:02:15]} 14. Nf3 {[%clk 0:02:43]}  Bc5 {[%clk 0:02:13]} 15. O-O {[%clk 0:02:41]}  O-O {[%clk 0:02:11]} 16. h3 {[%clk 0:02:41]}  Nxf2 {[%clk 0:01:54]} 17. Rxf2 {[%clk 0:02:40]}  Rfd8 {[%clk 0:01:54]} 18. Bg5 {[%clk 0:02:37]}  Rd5 {[%clk 0:01:44]} 19. Kf1 {[%clk 0:02:34]}  Bxf2 {[%clk 0:01:37]} 20. Kxf2 {[%clk 0:02:35]}  h6 {[%clk 0:01:38]} 21. Be3 {[%clk 0:02:31]}  Rb8 {[%clk 0:01:32]} 22. b4 {[%clk 0:02:31]}  a6 {[%clk 0:01:30]} 23. Bd4 {[%clk 0:02:30]}  a5 {[%clk 0:01:28]} 24. a3 {[%clk 0:02:29]}  axb4 {[%clk 0:01:25]} 25. axb4 {[%clk 0:02:28]}  h5 {[%clk 0:01:19]} 26. Ra7 {[%clk 0:02:24]} 1-0


[Site "https://www.chess.com"]

[Event "Titled Tuesday Blitz March 07 Late 2023"]
[White "Balague Camps, Marc"]
[Black "Vargas Pereda, Jesus Manue"]
[WhiteFideId "2297914"]
[BlackFideId "5115710"]
[WhiteElo "2089"]
[BlackElo "1914"]
[Result "1-0"]
[Round "09"]
[TimeControl "180+2"]
[Date "2023.03.07"]
[WhiteClock "0:00:39"]
[BlackClock "0:00:02"]

1. d4 {[%clk 0:03:00]}  Nf6 {[%clk 0:02:59]} 2. c4 {[%clk 0:03:01]}  b6 {[%clk 0:02:59]} 3. f3 {[%clk 0:02:59]}  Bb7 {[%clk 0:02:59]} 4. e4 {[%clk 0:02:59]}  e6 {[%clk 0:03:00]} 5. Nc3 {[%clk 0:02:59]}  Bb4 {[%clk 0:02:58]} 6. Ne2 {[%clk 0:02:59]}  O-O {[%clk 0:02:55]} 7. a3 {[%clk 0:03:00]}  Bxc3+ {[%clk 0:02:55]} 8. Nxc3 {[%clk 0:02:59]}  c5 {[%clk 0:02:55]} 9. d5 {[%clk 0:02:59]}  d6 {[%clk 0:02:54]} 10. Be2 {[%clk 0:02:54]}  exd5 {[%clk 0:02:54]} 11. cxd5 {[%clk 0:02:52]}  Nbd7 {[%clk 0:02:52]} 12. O-O {[%clk 0:02:51]}  a6 {[%clk 0:02:52]} 13. b4 {[%clk 0:02:47]}  b5 {[%clk 0:02:50]} 14. Kh1 {[%clk 0:02:46]}  c4 {[%clk 0:02:48]} 15. Be3 {[%clk 0:02:44]}  Re8 {[%clk 0:02:43]} 16. Bd4 {[%clk 0:02:43]}  Ne5 {[%clk 0:02:43]} 17. Re1 {[%clk 0:02:40]}  Ng6 {[%clk 0:02:41]} 18. Qd2 {[%clk 0:02:38]}  Rc8 {[%clk 0:02:30]} 19. Bf1 {[%clk 0:02:38]}  Nh5 {[%clk 0:02:19]} 20. g3 {[%clk 0:02:36]}  Ne5 {[%clk 0:02:12]} 21. Re3 {[%clk 0:02:30]}  g6 {[%clk 0:01:54]} 22. Bh3 {[%clk 0:02:29]}  Rc7 {[%clk 0:01:53]} 23. Bb6 {[%clk 0:02:27]}  Qe7 {[%clk 0:01:52]} 24. Bxc7 {[%clk 0:02:27]}  Qxc7 {[%clk 0:01:52]} 25. Qd4 {[%clk 0:02:25]}  Bc8 {[%clk 0:01:51]} 26. Bxc8 {[%clk 0:02:21]}  Qxc8 {[%clk 0:01:49]} 27. Kg2 {[%clk 0:02:22]}  f5 {[%clk 0:01:46]} 28. a4 {[%clk 0:02:20]}  f4 {[%clk 0:01:40]} 29. Ree1 {[%clk 0:02:16]}  Rf8 {[%clk 0:01:28]} 30. Rf1 {[%clk 0:02:12]}  bxa4 {[%clk 0:01:23]} 31. Rxa4 {[%clk 0:02:02]}  fxg3 {[%clk 0:01:23]} 32. hxg3 {[%clk 0:02:01]}  Qd8 {[%clk 0:01:22]} 33. f4 {[%clk 0:02:00]}  Nd3 {[%clk 0:01:02]} 34. Ne2 {[%clk 0:01:48]}  Qd7 {[%clk 0:00:53]} 35. Rxa6 {[%clk 0:01:45]}  Qg4 {[%clk 0:00:52]} 36. Rf3 {[%clk 0:01:42]}  Ne5 {[%clk 0:00:43]} 37. Re3 {[%clk 0:01:26]}  Rxf4 {[%clk 0:00:36]} 38. Rxd6 {[%clk 0:01:23]}  Rf3 {[%clk 0:00:23]} 39. Qxe5 {[%clk 0:01:17]}  Rxe3 {[%clk 0:00:15]} 40. Rd8+ {[%clk 0:01:13]}  Kf7 {[%clk 0:00:15]} 41. Qc7+ {[%clk 0:00:52]}  Kf6 {[%clk 0:00:13]} 42. Qb6+ {[%clk 0:00:48]}  Kg7 {[%clk 0:00:10]} 43. Qxe3 {[%clk 0:00:46]}  c3 {[%clk 0:00:03]} 44. Qxc3+ {[%clk 0:00:45]}  Kh6 {[%clk 0:00:03]} 45. Qe3+ {[%clk 0:00:42]}  Kg7 {[%clk 0:00:03]} 46. Nf4 {[%clk 0:00:42]}  Nf6 {[%clk 0:00:02]} 47. e5 {[%clk 0:00:39]} 1-0


[Site "https://www.chess.com"]

[Event "Titled Tuesday Blitz March 07 Late 2023"]
[White "tandercat"]
[Black "Kujawski, Adam"]
[BlackFideId "1100920"]
[WhiteElo "1934"]
[BlackElo "2054"]
[Result "1-0"]
[Round "09"]
[TimeControl "180+2"]
[Date "2023.03.07"]
[WhiteClock "0:01:26"]
[BlackClock "0:00:06"]

1. d4 {[%clk 0:03:00]}  Nf6 {[%clk 0:00:15]} 2. c4 {[%clk 0:02:58]}  e6 {[%clk 0:00:15]} 3. Nc3 {[%clk 0:02:57]}  Bb4 {[%clk 0:00:16]} 4. f3 {[%clk 0:02:58]}  Bxc3+ {[%clk 0:00:15]} 5. bxc3 {[%clk 0:02:58]}  d5 {[%clk 0:00:16]} 6. cxd5 {[%clk 0:02:56]}  exd5 {[%clk 0:00:17]} 7. e3 {[%clk 0:02:55]}  O-O {[%clk 0:00:17]} 8. Bd3 {[%clk 0:02:55]}  c5 {[%clk 0:00:18]} 9. Ne2 {[%clk 0:02:55]}  b6 {[%clk 0:00:18]} 10. O-O {[%clk 0:02:55]}  Ba6 {[%clk 0:00:18]} 11. Ng3 {[%clk 0:02:51]}  Re8 {[%clk 0:00:18]} 12. Bxa6 {[%clk 0:02:50]}  Nxa6 {[%clk 0:00:18]} 13. Qd3 {[%clk 0:02:51]}  Nb8 {[%clk 0:00:18]} 14. e4 {[%clk 0:02:49]}  dxe4 {[%clk 0:00:18]} 15. fxe4 {[%clk 0:02:47]}  cxd4 {[%clk 0:00:19]} 16. cxd4 {[%clk 0:02:47]}  Nc6 {[%clk 0:00:20]} 17. Bb2 {[%clk 0:02:25]}  Qd7 {[%clk 0:00:20]} 18. Rxf6 {[%clk 0:02:07]}  gxf6 {[%clk 0:00:19]} 19. Nh5 {[%clk 0:02:07]}  Qe6 {[%clk 0:00:16]} 20. Rf1 {[%clk 0:02:05]}  Kf8 {[%clk 0:00:15]} 21. Nxf6 {[%clk 0:02:01]}  Re7 {[%clk 0:00:12]} 22. Qe3 {[%clk 0:01:38]}  Ree8 {[%clk 0:00:10]} 23. Qh6+ {[%clk 0:01:37]}  Ke7 {[%clk 0:00:10]} 24. d5 {[%clk 0:01:32]}  Qd6 {[%clk 0:00:09]} 25. dxc6 {[%clk 0:01:31]}  Qc5+ {[%clk 0:00:08]} 26. Kh1 {[%clk 0:01:29]}  Rec8 {[%clk 0:00:08]} 27. Nd5+ {[%clk 0:01:27]}  Kd8 {[%clk 0:00:07]} 28. Qf6+ {[%clk 0:01:26]}  Ke8 {[%clk 0:00:06]} 29. Qxf7+ {[%clk 0:01:26]}  Kd8 {[%clk 0:00:06]} 30. Qd7# {[%clk 0:01:26]} 1-0


[Site "https://www.chess.com"]